Cogmind - Beta 15 @@@ ROGUE MODE // 2025.06.12 @ 16:14:58 Player: DZKane Result: Destroyed by P-60 Hacker with Shock Rifle Performance ------------- Evolutions (0) 0 Regions Visited (3) 600 Robots Destroyed (23) 115 Value Destroyed (453) 453 Prototype IDs (2) 40 Alien Tech Used (0) 0 Bonus (0) 0 TOTAL SCORE: 1208 Bonus ------- None Cogmind --------- Core Integrity 0/250 Matter 258/300 Energy 99/100 System Corruption 2% Temperature Cool (0) Movement Core (1400) Ox27 Location -7/Recycling Parts ------- > --- POWER (1) -------- (None) > --- PROPULSION (2) --- Light Treads Wheel > --- UTILITY (2) ------ Improved Heat Sink Huge Storage Unit > --- WEAPON (2) ------- Light Assault Rifle Light Assault Rifle > --- INVENTORY (25) --- Subdweller Power Source Subdweller Power Source Light Treads Light Treads Light Treads Wheel Flight Unit Flight Unit Huge Storage Unit Large Matter Pod (150) Large Matter Pod (150) High-capacity Matter Pod (200) Subdweller Optics Transport Network Coupler Hacking Suite Assault Rifle Assault Rifle Light Assault Rifle Datajack Hammer Hammer Peak State ------------ > --- POWER ------------ Light Ion Engine > --- PROPULSION ------- Wheel Wheel > --- UTILITY ---------- Improved Heat Sink Huge Storage Unit > --- WEAPON ----------- EM Pulse Gun EM Pulse Gun > --- INVENTORY -------- Light Ion Engine Subdweller Power Source Subdweller Power Source Light Treads Light Treads Light Treads Light Treads Wheel Flight Unit Flight Unit Huge Storage Unit Large Matter Pod Large Matter Pod High-capacity Matter Pod Subdweller Optics Transport Network Coupler Hacking Suite Assault Rifle Assault Rifle Light Assault Rifle Light Assault Rifle Light Assault Rifle Datajack Hammer Hammer [Rating: 12] Favorites ----------- Power Ion Engine Engine Ion Engine Propulsion Light Treads Treads Light Treads Leg Aluminum Leg Wheel Wheel Utility Improved Heat Sink Device Improved Heat Sink Storage Huge Storage Unit Weapon Light Assault Rifle Energy Gun EM Pulse Gun Ballistic Gun Light Assault Rifle Build | -11 -10 -10 -7 ------- Run | Yrd Mat Sub Rec Slots Evolved . | . . . . Power . | . . . . Propulsion . | . . . . Utility . | . . . . Weapon . | . . . . Parts Attached 16 | 3 4 5 4 Power 3 | . 1 1 1 Engine 3 | . 1 1 1 Core . | . . . . Reactor . | . . . . Propulsion 5 | 2 . 2 1 Treads 3 | 2 . . 1 Leg . | . . . . Wheel 2 | . . 2 . Hover . | . . . . Flight . | . . . . Utility 2 | . 2 . . Device 1 | . 1 . . Storage 1 | . 1 . . Processor . | . . . . Hackware . | . . . . Protection . | . . . . Artifact . | . . . . Weapon 6 | 1 1 2 2 Energy Gun 2 | . . 2 . Energy Cannon . | . . . . Ballistic Gun 4 | 1 1 . 2 Ballistic Cannon . | . . . . Launcher . | . . . . Special Weapon . | . . . . Impact Weapon . | . . . . Slashing Weapon . | . . . . Piercing Weapon . | . . . . Special Melee Weapon . | . . . . Unidentified Prototypes . | . . . . Parts Lost 6 | . . 1 5 Power 3 | . . 1 2 Propulsion 1 | . . . 1 Utility . | . . . . Weapon 2 | . . . 2 Highest Loss Streak 5 | . . 1 5 To Critical Strikes . | . . . . Average Backups 19 | 6 15 24 24 Power 1 | 1 1 2 2 Propulsion 7 | 4 6 8 6 Utility 4 | . 3 6 7 Weapon 4 | 1 3 7 6 Tool/Special . | . . . . Unused Backups 28 | . 9 . 19 Power 4 | . 2 . 2 Propulsion 10 | . 4 . 6 Utility 9 | . 2 . 7 Weapon 4 | . 1 . 3 Tool/Special 1 | . . . 1 Average Slot Usage (%) 98 | . 97 99 98 Engine 13 | . 14 13 13 Treads 21 | . 28 18 1 Wheel 6 | . . 9 26 Device 12 | . 11 14 14 Storage 14 | . 14 14 14 Energy Gun 6 | . . 9 24 Ballistic Gun 21 | . 28 18 2 Peak Build Rating 12 | 6 11 12 12 Average Rating 10 | 6 9 11 11 On Entrance 8 | 6 6 11 12 Naked Turns . | . . . . Heaviest Build 90 | 13 89 90 88 Greatest Support 40 | 40 40 40 20 Greatest Overweight (x) 4 | . 2 4 4 Average Overweight (x) 2 | . . 3 4 Largest Inventory Capacity 25 | 8 25 25 25 Average Capacity 21 | 8 18 25 25 Most Carried 25 | 6 25 25 25 Average Carried 19 | 6 15 24 24 Final Capacity 25 | 8 25 25 25 Final Carried 25 | 6 25 25 21 Class Distribution -------------------- 78% | Mutant 21% | Scavenger-Mutant Dominant Class ---------------- Mutant | -10/Materials Mutant | -10/Subcaves Scavenger-Mutant | -7/Recycling Resources | -11 -10 -10 -7 ----------- Run | Yrd Mat Sub Rec Matter Collected 1055 | 230 567 258 . Remotely . | . . . . Salvage Created 741 | . 570 171 . Parts 44 | . 33 11 . Haulers Intercepted 2 | . 2 . . Recyclers Shooed 1 | . 1 . . Parts Field Recycled . | . . . . Retrieved Matter . | . . . . Parts Self-Destructed 8 | . . 8 . Prevented 1 | . . 1 . Kills | -11 -10 -10 -7 ------- Run | Yrd Mat Sub Rec Combat Hostiles Destroyed 14 | . 9 5 . Guns 14 | . 9 5 . Classes Destroyed 8 | . 6 2 . Worker 3 | . 3 . . Hauler 2 | . 2 . . Recycler 1 | . 1 . . Operator 1 | . 1 . . Turret 2 | . . 2 . Swarmer 6 | . 2 4 . Grunt 7 | . 7 . . Subdweller 1 | . . 1 . Best Kill Streak 4 | . 3 4 . Combat Bots Only 4 | . 2 4 . Max Kills in Single Turn 1 | . 1 1 . Gunslinging . | . . . . Exploded . | . . . . Melee . | . . . . Uniques/NPCs Destroyed . | . . . . Combat | -11 -10 -10 -7 -------- Run | Yrd Mat Sub Rec Hostile Shots Fired 189 | . 40 107 42 Missed 73 | . 13 46 14 Hits 116 | . 27 61 28 Projectile 116 | . 27 61 28 AOE 2 | . . . 2 Critical Strikes 3 | . 1 . 2 Part Disruptions 2 | . . . 2 Damage Taken 1200 | . 310 400 490 Core 262 | . 44 49 169 Absorbed by Shields . | . . . . Core Remaining (%) 100 | 100 . . . Volleys Fired 85 | . 53 20 12 Largest 2 | . 2 2 1 Hottest 80 | . 40 80 20 Shots Fired 158 | . 106 40 12 Gun 158 | . 106 40 12 Cannon . | . . . . Launcher . | . . . . Special . | . . . . Kinetic 132 | . 106 14 12 Thermal . | . . . . Explosive . | . . . . Electromagnetic 26 | . . 26 . Robot Hit Streak 8 | . 8 7 3 Robot Miss Streak 4 | . 3 3 4 Penetration Max . | . . . . Secondary Targets 2 | . . 2 . Max Gunslinging Chain 1 | . . 1 . Shots Hit Robots 101 | . 67 28 6 Core Hits 44 | . 31 11 2 Critical Kills . | . . . . Critical Parts Destroyed . | . . . . Critical Strikes . | . . . . Melee Attacks . | . . . . Impact . | . . . . Slashing . | . . . . Piercing . | . . . . Sneak Attacks . | . . . . Combat Hostiles . | . . . . Follow-up Attacks . | . . . . Damage Inflicted 1118 | . 733 325 60 Guns 1118 | . 733 325 60 Cannons . | . . . . Explosions . | . . . . Melee . | . . . . Ramming . | . . . . Kinetic 881 | . 733 88 60 Thermal . | . . . . Explosive . | . . . . Electromagnetic 237 | . . 237 . Impact . | . . . . Slashing . | . . . . Piercing . | . . . . Highest Corruption 1 | . . . 1 Average Corruption 1 | . . . 1 Corruption Purged . | . . . . Corruption Blocked . | . . . . Overload Shots . | . . . . Overflow Damage . | . . . . Projectiles . | . . . . Explosions . | . . . . Melee . | . . . . Knockbacks . | . . . . Impact . | . . . . Kinetic . | . . . . Secondary . | . . . . Self-Inflicted Damage . | . . . . Shots . | . . . . Rammed . | . . . . Targets Rammed . | . . . . Kicked . | . . . . Crushed . | . . . . Highest Temperature 12 | . 12 . . Average Temperature 8 | . 8 . . Received Heat Transfer 297 | . 144 72 81 Siege Activations . | . . . . Martial Activations . | . . . . Shielding Activations . | . . . . Robots Disrupted . | . . . . Combat Hostiles . | . . . . Robots Corrupted 1 | . . 1 . Combat Hostiles . | . . . . Parts Fried 1 | . . 1 . Impact Corruptions . | . . . . Robots Melted . | . . . . Combat Hostiles . | . . . . Parts Melted . | . . . . Heat Transferred . | . . . . Parts Sabotaged . | . . . . Parts Stolen . | . . . . Parts Stripped . | . . . . Power Chain Reactions . | . . . . Alert | -11 -10 -10 -7 ------- Run | Yrd Mat Sub Rec Maximum Alert Level 1 | . . . 1 Low Security (%) 90 | 100 100 . 48 Level 1 9 | . . . 51 Level 2 . | . . . . Level 3 . | . . . . Level 4 . | . . . . Level 5 . | . . . . High Security . | . . . . Max Security . | . . . . Peak Influence 254 | . 76 . 254 Initial 214 | . . . 214 Average 46 | . 14 . 189 Influence Increases 974 | . 299 600 75 Destroy 0b10 Robot/C 300 | . 180 120 . Destroy 0b10 Robot/NC 35 | . 35 . . Destroy Leader 44 | . 44 . . Successful Hack 25 | . 25 . . Select Force Hacks 60 | . . . 60 Lose Combat Pursuer 510 | . 15 480 15 Influence Decreases 885 | . 299 152 434 Entered New Map 234 | . . . 234 Time Decay 591 | . 299 142 150 Lost Part 60 | . . 10 50 Squads Dispatched 2 | . 2 . . Investigation 1 | . 1 . . Extermination . | . . . . Reinforcement 1 | . 1 . . Assault . | . . . . Garrison . | . . . . Intercept . | . . . . Searches Triggered . | . . . . Construction Impeded . | . . . . Haulers Reinforced . | . . . . Active Scanning Responses . | . . . . Cargo Convoy Interrupts . | . . . . Stealth | -11 -10 -10 -7 --------- Run | Yrd Mat Sub Rec Distress Signals 3 | . 2 . 1 Communications Jammed . | . . . . Distress Signals . | . . . . Times Spotted 53 | . 22 26 5 Peak Tracking Total 5 | . 4 4 5 Tactical Retreats 7 | . 1 5 1 Traps | -11 -10 -10 -7 ------- Run | Yrd Mat Sub Rec Traps Triggered . | . . . . Indirectly . | . . . . Trap Hack Attempts . | . . . . Triggered . | . . . . Disarmed . | . . . . Reprogrammed . | . . . . Reused . | . . . . Traps Extracted . | . . . . Installed . | . . . . Triggered . | . . . . Machines | -11 -10 -10 -7 ---------- Run | Yrd Mat Sub Rec Machines Disabled 1 | . . 1 . Max in Single Turn 1 | . . 1 . Machines Repaired . | . . . . Machines Dismantled . | . . . . Machines Sabotaged . | . . . . Overloaded Fab Kills . | . . . . Hacking | -11 -10 -10 -7 --------- Run | Yrd Mat Sub Rec Machines Accessed 9 | . 7 . 2 Terminals 5 | . 5 . . Fabricators . | . . . . Repair Stations . | . . . . Recycling Units 4 | . 2 . 2 Scanalyzers . | . . . . Garrison Access . | . . . . Total Hacks 24 | . 22 . 2 Successful 13 | . 11 . 2 Failed 11 | . 11 . . Catastrophic . | . . . . Database Lockouts . | . . . . Manual 14 | . 12 . 2 Terminals 14 | . 14 . . Fabricators . | . . . . Repair Stations . | . . . . Recycling Units 10 | . 8 . 2 Scanalyzers . | . . . . Garrison Access . | . . . . Terminal Hacks 2 | . 2 . . Prototype ID Bank 1 | . 1 . . Terminal Index 1 | . 1 . . Fabricator Hacks . | . . . . Repair Station Hacks . | . . . . Recycling Unit Hacks 1 | . 1 . . Report Inventory 1 | . 1 . . Scanalyzer . | . . . . Garrison Access Hacks . | . . . . Unauthorized Hacks 10 | . 8 . 2 Terminals 7 | . 7 . . Botnet 2 | . 2 . . Skim 5 | . 5 . . Fabricators . | . . . . Repair Stations . | . . . . Recycling Units 3 | . 1 . 2 Mask 1 | . 1 . . Tunnel 2 | . . . 2 Scanalyzers . | . . . . Garrison Access . | . . . . Data Cores Recovered 1 | . 1 . . Used . | . . . . Hacking Detections 5 | . 5 . . Full Trace Events 1 | . 1 . . Feedback Events . | . . . . Feedback Blocked . | . . . . Robot Schematics Acquired . | . . . . Robots Built . | . . . . Authchips . | . . . . Time . | . . . . Total Robot Build Rating . | . . . . Part Schematics Acquired . | . . . . Parts Built . | . . . . Authchips . | . . . . Time . | . . . . Total Part Build Rating . | . . . . Parts Repaired . | . . . . Time . | . . . . Parts Recycled . | . . . . Recycled Matter . | . . . . Retrieved Matter . | . . . . Retrieved Components . | . . . . Parts Scanalyzed . | . . . . Part Schematics Acquired . | . . . . Parts Damaged . | . . . . Bothacking | -11 -10 -10 -7 ------------ Run | Yrd Mat Sub Rec Used RIF Installer . | . . . . Robots Hacked . | . . . . Non-combat . | . . . . Combat . | . . . . Robot Hacks Applied . | . . . . Relay Couplers Released . | . . . . Fabnet Peak Effective % . | . . . . Robots Rewired . | . . . . Allies Hacked . | . . . . Hacks Repelled . | . . . . Allies | -11 -10 -10 -7 -------- Run | Yrd Mat Sub Rec Total Allies . | . . . . Largest Group . | . . . . Highest-Rated Group . | . . . . Highest-Rated Ally . | . . . . Total Orders . | . . . . Ally Attacks . | . . . . Total Damage . | . . . . Kills . | . . . . Allies Corrupted . | . . . . Allies Melted . | . . . . Intel | -11 -10 -10 -7 ------- Run | Yrd Mat Sub Rec Active Infowar (turns) . | . . . . Robot Analysis Total . | . . . . Derelict Logs Recovered . | . . . . Drone Launches . | . . . . Drone Recoveries . | . . . . Exploration | -11 -10 -10 -7 ------------- Run | Yrd Mat Sub Rec Turns Passed 2499 | 8 1377 803 311 Spaces Moved 936 | 3 419 309 205 Core . | . . . . Treads 569 | 3 419 147 . Legs . | . . . . Wheels 367 | . . 162 205 Hover . | . . . . Flight . | . . . . Fastest Speed 140 | 160 160 140 140 Average Speed 213 | 160 239 225 140 Slowest Speed 320 | 160 320 320 140 Overloaded Moves . | . . . . Propulsion Burnouts . | . . . . Robots Hopped . | . . . . Potential Cave-ins . | . . . . Cave-ins Triggered . | . . . . Exploration Rate (%) 29 | 3 80 17 17 Regions Visited 3 Branch Regions 2 Pre-discovered Areas 2 | . . . 2 Known Exits Taken . | . . . . Unknown Exits Taken 3 | 1 1 1 . Scrap Searched . | . . . . Spaces Dug . | . . . . Terrain Destroyed . | . . . . Melee . | . . . . Projectile . | . . . . AOE . | . . . . Terrain Rammed . | . . . . Walls Destroyed . | . . . . Machines Disabled . | . . . . Actions | -11 -10 -10 -7 --------- Run | Yrd Mat Sub Rec Total 1303 | 5 702 375 221 Wait 227 | . 190 37 . Move 933 | 2 418 308 205 Hop . | . . . . Pick Up 30 | . 27 3 . Fast Attach 1 | . 1 . . Attach 5 | . . 1 4 Detach . | . . . . Swap 10 | 3 3 4 . Drop 12 | . 10 2 . Fire 85 | . 53 20 12 Melee . | . . . . Ram . | . . . . Kick . | . . . . Crush . | . . . . Escape Stasis . | . . . . Rewire . | . . . . Trap . | . . . . Miscellaneous . | . . . . Route ------- -11/Scrapyard -10/Materials (discovered 6 exits: *Mat x3 / [*Min x2] / [*Sub]) -10/Subcaves (discovered 2 exits: [*Mat] / *Rec) -7/Recycling History --------- Turn | Location | Event 6 | -11/Scrapyard | Discovered new exit (range 1) 9 | -11/Scrapyard | Entered Materials 304 | -10/Materials | Build established: Mutant 321 | -10/Materials | Discovered new exit (range 11) 574 | -10/Materials | Discovered new exit (range 11) 902 | -10/Materials | Discovered new exit (range 16) 1181 | -10/Materials | Discovered new exit (range 16) 1197 | -10/Materials | Discovered new exit (range 11) 1241 | -10/Materials | Learned location of 2 exits from Mines 1299 | -10/Materials | Loaded intel: 9 interactive machine locations 1312 | -10/Materials | Identified exit to Materials 1316 | -10/Materials | Learned Materials emergency access door positions 1353 | -10/Materials | Learned location of 1 exit from Materials 1386 | -10/Materials | Entered Subcaves 1387 | -10/Subcaves | Approached by a straggling Scientist 1934 | -10/Subcaves | Discovered new exit (range 13) 2078 | -10/Subcaves | Discovered new exit (range 11) 2189 | -10/Subcaves | Entered Recycling 2269 | -7/Recycling | Build established: Scavenger-Mutant 2470 | -7/Recycling | Core integrity fell below 50% 2488 | -7/Recycling | Core integrity fell below 20% 2500 | -7/Recycling | Destroyed by P-60 Hacker with Shock Rifle Last Messages --------------- 02467_ P-60 Hacker springs to life. 02467_ EM Pulse Gun destroyed. 02467_ U-05 Engineer lays Concrete. 02469_ S-27 Virus springs to life. 02469_ U-05 Engineer lays Concrete. 02469_ U-05 Engineer destroyed. 02470_ U-05 Engineer lays Concrete. 02472_ The unstable cave ceiling collapses. 02472_ U-05 Engineer lays Concrete. 02479_ Wheel destroyed. 02479_ U-05 Engineer lays Concrete. 02481_ U-05 Engineer builds a Wall. 02485_ S-27 Virus destroyed. 02485_ U-05 Engineer lays Concrete. 02486_ The unstable cave ceiling collapses. 02486_ U-05 Engineer lays Concrete. 02487_ U-05 Engineer builds a Wall. 02496_ U-05 Engineer lays Concrete. 02497_ Lgt. Ion Engine destroyed. 02498_ U-05 Engineer builds a Door. Map ----- +----------------------------------------------------+ | ???????#### ######????????????? | | ???????# #????????????? | | ???????# #????????????? | | ???????# #????????????? | | ???##### #????????????? | | ???# # #????????????? | | ???# # #????????????? | | ???# # #????????????? | | ???# + #????????????? | | ???# ####### ###????????????? | | ???# #?????###??????????????? | | ???# #############??????????? | | ???# # ! ! ??????????? | | ???# # ! ??????????? | | ??## # #?????????? | | ??# #= % #?????????? | | ??## # #?????????? | | ??# i [ [ [ #?????????? | | ??# + /#?????????? | | ??# u# % #?????????? | | ??# r # / #?????????? | | ??# g# #?????????? | | ??# p|%# #?????????? | | ??# !%!# ! #?????????? | | ??## = ###########+##?????????? | | ???# @#??????????????????????? | | ???# #??????????????????????? | | ???# #??????????????????????? | | ???# #??????????????????????? | | ???# #??????????????????????? | | ???# #??????????????????????? | | ???# ###????????????????????? | | ???# ""#????????????????????? | | ???# Y"#????????????????????? | | ???# ""#????????????????????? | | ???# ###????????????????????? | | ???# #??????????????????????? | | ???# #??????????????????????? | | ???# #??????????????????????? | | ???# #??????????????????????? | | ???# #??????????????????????? | | ???# #??????????????????????? | | ???# ###????????????????????? | | ???# ""#????????????????????? | | ???# Y"#????????????????????? | | ???# ""#????????????????????? | | ???# ###????????????????????? | | ???# #??????????????????????? | | ???# #??????????????????????? | | ???# #??????????????????????? | +----------------------------------------------------+ Best States ------------- Heat Dissipation 39 Energy Generation 10 Energy Capacity 250 Matter Stores 300 Matter Capacity 300 Sight Range 16 Terrain Scan Density 10 Evasion (%) 40 Recoil Reduction 2 Item Schematics ----------------- None Robot Schematics ------------------ None Fabricated ------------ Nothing Repaired ---------- Nothing Alien Tech Used ----------------- None Achievements -------------- None Challenges ------------ None Game ------ Seed BackupGatlingField Manual? 0 Play Time 00:15:29 Cumulative 254.3 hours Start 2025.06.12 @ 16:01:08 End 2025.06.12 @ 16:14:58 Sessions 1 Manual Loads 0 Difficulty Rogue Special Mode None Game No. 151 Rogue 151 Adventurer 0 Explorer 0 Win Type - Total 11 Types 11/0/0/0/0/0/0/0/0/0 Lore% 71 Gallery% 68 Achievement% 61 Wizard Run 0 Options --------- Layout 1 ASCII 0 Keyboard 0 Movement Numpad Keybinds 0 Fullscreen 1 Font 24/Smallcaps Map View 50x35 Zoom Use 0% Tactical HUD 1 Map Filters NONE Filters NONE Steam 1 RUN: 93c846ac-a298-4240-94e8-0284bcff0069